[Event "Charlotte Summer IM C 2022"]
[Site "Charlotte"]
[Date "2022.07.26"]
[Round "4.1"]
[White "Huston, Gus"]
[Black "Arjun, Vishnuvardhan"]
[Result "1-0"]
[ECO "B00"]
[WhiteElo "2282"]
[BlackElo "2273"]
[Annotator "TA"]
[PlyCount "53"]
[EventDate "2022.07.24"]
[EventType "tourn"]
[EventCountry "USA"]
[SourceTitle "playchess.com"]
[Source "ChessBase"]
[SourceQuality "1"]
[TimeControl "5400+30"]

{[%evp 9,53,67,64,69,95,79,89,76,78,81,125,116,126,126,312,332,819,790,764,764,1144,1131,1146,1159,1147,1160,1112,1101,1142,1112,1126,1137,1111,1099,3813,3184,5809,5178,29988,29989,29989,29990,29997,29998,29998,29999]} 1. e4 {[%emt 0:00:15]} a6 {[%emt 0:05:23]} 2. d4 {[%emt 0:00:10]} b5 {[%emt 0:00:21]} 3. a4 {[%emt 0:00:25]} b4 {[%emt 0:00:46]} 4. Bd3 {[%emt 0:00:58]} Bb7 {[%emt 0:00:31]} 5. Nf3 {[%emt 0:00:26]} e6 {[%emt 0:00:20]} 6. O-O {[%emt 0:00:47] B00: Queen's Fianchetto Defence, Nimzowitsch Defence.} Nf6 {[%emt 0:04:30]} 7. e5 {[%emt 0:07:39]} Nd5 {[%emt 0:01:01]} 8. c4 {[%emt 0:01:50] White is better.} bxc3 {[%emt 0:00:13]} 9. bxc3 {[%emt 0:00:08]} c5 {[%emt 0:00:31] [#]} 10. Ng5 $146 {[%emt 0:16:24] Qf3 is the strong threat.} ({Predecessor:} 10. Be4 Bc6 11. c4 Ne3 12. Bxe3 Bxe4 13. d5 Qa5 14. Nbd2 exd5 15. Nxe4 dxe4 16. Qd5 exf3 17. Qxa8 {1-0 (25) Rakhmangulova,A (2229)-Shilov,S (2030) Frydek Mistek 2022}) 10... Be7 {[%emt 0:06:51] [#]} 11. Qh5 {[%emt 0:05:48][%csl Gg5][%cal Rh5f7] White is more active.} ({Weaker is} 11. Nxh7 g6 12. Nf6+ (12. Qb3 Bc6 $15) 12... Nxf6 13. exf6 Bxf6 14. dxc5 Qc7 $15) 11... Bxg5 $2 {[%emt 0:01:26]} (11... g6 $16 12. Qh6 Bf8) 12. Bxg5 $18 {[%emt 0:00:09]} Qb6 {[%emt 0:00:28]} (12... Qc7 13. Nd2 Nb6) 13. Nd2 {[%emt 0:00:51][%cal Bb1d2,Bd2e4,Be4c5][%mdl 32]} Qc6 {[%emt 0:06:35]} 14. Ne4 {[%emt 0:03:46]} O-O {[%emt 0:02:33]} 15. f3 {[%emt 0:09:08][%cal Oe4f6] White wants to mate with Nf6+!} f5 {[%emt 0:02:54]} 16. exf6 {[%emt 0:00:34]} g6 {[%emt 0:00:03]} 17. Qh6 {[%emt 0:00:28][%csl Gf6][%cal Rh6g7]} Rf7 {[%emt 0:00:05] Inhibits Qg7+.} 18. Nxc5 {[%emt 0:05:07][%cal Od3g6]} Nxf6 {[%emt 0:05:31] [#]} 19. Bxg6 $1 {[%emt 0:01:50][%mdl 512]} hxg6 {[%emt 0:03:45]} 20. Qxg6+ {[%emt 0:00:39]} Rg7 {[%emt 0:00:06]} 21. Qxf6 {[%emt 0:00:12] Bh6 would kill now.} Rf7 {[%emt 0:03:44]} 22. Qg6+ {[%emt 0:00:49]} Kf8 {[%emt 0:53:53]} 23. Rab1 {[%emt 0:01:22] Intending Bh6+ and mate.} Bc8 {[%emt 0:00:00]} 24. Bh6+ {[%emt 0:00:13] White mates.} Ke7 {[%emt 0:00:00]} 25. Qg5+ {[%emt 0:00:03]} Kd6 {[%emt 0:00:00]} 26. Ne4+ {[%emt 0:02:13]} Kc7 {[%emt 0:00:00]} 27. Qa5+ {[%emt 0:00:30] Black got outplayed after the opening.  Weighted Error Value: White=0.00 (flawless) /Black=0.84} 1-0

[Event "Charlotte Summer IM C 2022"]
[Site "Charlotte"]
[Date "2022.07.26"]
[Round "4.2"]
[White "Rodriguez Rivera, Pedro"]
[Black "Girones Barrios, Yans Richard"]
[Result "1/2-1/2"]
[ECO "A48"]
[WhiteElo "2192"]
[BlackElo "2412"]
[Annotator "TA"]
[PlyCount "45"]
[EventDate "2022.07.24"]
[EventType "tourn"]
[EventCountry "USA"]
[SourceTitle "playchess.com"]
[Source "ChessBase"]
[SourceQuality "1"]
[TimeControl "5400+30"]

{[%evp 13,45,0,3,-15,-6,-14,0,0,0,-9,0,6,10,-7,0,0,10,0,0,0,18,14,15,6,2,10,6,14,18,5,13,-6,0,0]} 1. d4 {[%emt 0:00:30]} d5 {[%emt 0:07:09]} 2. Nf3 {[%emt 0:00:00]} c5 {[%emt 0:00:29]} 3. e3 {[%emt 0:00:00]} Nf6 {[%emt 0:00:58]} 4. c3 {[%emt 0:00:14]} Nbd7 {[%emt 0:02:21]} 5. Bd3 {[%emt 0:00:35]} Qc7 {[%emt 0:01:41]} 6. Nbd2 {[%emt 0:00:37]} g6 {[%emt 0:01:01]} 7. O-O {[%emt 0:00:15]} Bg7 {[%emt 0:00:43] The position is equal.} 8. e4 {[%emt 0:03:17] A48: 1 d4 Nf6 2 Nf3 g6: Torre, London and Colle Systems.} dxe4 {[%emt 0:01:31]} 9. Nxe4 {[%emt 0:00:03]} O-O {[%emt 0:00:50]} 10. Nxf6+ {[%emt 0:03:59]} Nxf6 {[%emt 0:01:49]} 11. Qe2 {[%emt 0:04:22] [#]} Rd8 $146 {[%emt 0:05:07]} ({Predecessor:} 11... cxd4 12. Nxd4 Re8 13. Bg5 a6 14. Rfe1 Bd7 15. Nf3 Bc6 16. Qe5 Qb6 {0-1 (39) Nakamura,J-Assef,N (1486) Sao Paulo 2012}) 12. dxc5 {[%emt 0:04:56]} Qxc5 {[%emt 0:00:12]} 13. Bf4 {[%emt 0:08:43]} Nh5 {[%emt 0:11:20]} 14. Be3 {[%emt 0:02:03]} Qc7 {[%emt 0:00:29]} 15. Bc2 {[%emt 0:01:12]} b6 {[%emt 0:16:37]} 16. Be4 {[%emt 0:01:34]} Be6 {[%emt 0:01:43]} 17. Bxa8 {[%emt 0:01:54] Threatens to win with Be4.} Bc4 {[%emt 0:00:16] [#]} 18. Qc2 {[%emt 0:00:26]} Bxf1 {[%emt 0:00:57]} 19. Rxf1 {[%emt 0:00:18]} Rxa8 {[%emt 0:00:05]} 20. Rd1 {[%emt 0:00:38]} Rc8 {[%emt 0:07:48]} 21. Qd3 {[%emt 0:04:19]} Nf6 {[%emt 0:00:31]} 22. Bd4 {[%emt 0:00:20]} Rd8 {[%emt 0:00:20]} 23. Qe2 {[%emt 0:00:49] An interesting draw.  Weighted Error Value: White=0.06 (flawless) /Black=0.05 (flawless)} 1/2-1/2

[Event "Charlotte Summer IM C 2022"]
[Site "Charlotte"]
[Date "2022.07.26"]
[Round "4.3"]
[White "Wen, Tommy"]
[Black "Adewumi, Tanitoluwa"]
[Result "1/2-1/2"]
[ECO "E17"]
[WhiteElo "2040"]
[BlackElo "2309"]
[Annotator "TA"]
[PlyCount "109"]
[EventDate "2022.07.24"]
[EventType "tourn"]
[EventCountry "USA"]
[SourceTitle "playchess.com"]
[Source "ChessBase"]
[SourceQuality "1"]
[TimeControl "5400+30"]

{[%evp 12,109,19,20,10,18,66,61,45,59,93,73,70,71,120,75,135,84,93,87,143,105,111,95,93,28,23,32,27,5,4,5,31,0,0,0,0,0,0,0,8,0,0,0,0,0,0,0,0,0,0,0,0,0,0,0,0,0,0,0,0,0,0,0,0,0,0,0,0,0,0,0,0,0,0,0,0,0,0,0,0,0,0,0,0,0,0,0,0,0,0,0,0,0,0,0,0,0,0,0]} 1. d4 {[%emt 0:02:14]} Nf6 {[%emt 0:00:33]} 2. c4 {[%emt 0:00:06]} e6 {[%emt 0:00:05]} 3. Nf3 {[%emt 0:00:05]} b6 {[%emt 0:00:15]} 4. g3 {[%emt 0:00:11]} Bb7 {[%emt 0:00:04]} 5. Bg2 {[%emt 0:00:13]} Be7 {[%emt 0:00:06]} 6. O-O {[%emt 0:00:06]} O-O {[%emt 0:00:04]} 7. Re1 {[%emt 0:00:10]} d5 {[%emt 0:01:35] E17: Queen's Indian: 4 g3 Bb7 5 Bg2 Be7.} 8. cxd5 {[%emt 0:00:28]} Nxd5 {[%emt 0:00:49]} (8... exd5 $11 9. Nc3 Nc6) 9. e4 $14 {[%emt 0:00:57]} Nf6 {[%emt 0:00:05] White is slightly better.} 10. Nc3 {[%emt 0:01:39]} c5 {[%emt 0:01:47] [#]} 11. d5 $1 {[%emt 0:06:58]} exd5 {[%emt 0:00:47]} 12. exd5 {[%emt 0:00:04]} Re8 {[%emt 0:07:09]} (12... Nxd5 $2 13. Ne5 Nd7 14. Bxd5 $18) 13. Ne5 {[%emt 0:04:39] [#]} h6 $146 {[%emt 0:11:01]} (13... Bd6 $142 14. Nc4 Rxe1+ 15. Qxe1 h6) ({Predecessor:} 13... Bd6 14. Nc4 Bf8 15. Bf4 a6 16. Rxe8 Nxe8 17. a4 Nd7 18. h4 Ra7 19. Qb3 Ba8 {1-0 (31) Nyback,T (2565)-Berczes,C (2419) Stockholm 2008}) 14. Nc4 {[%emt 0:13:43] White is much more active. The black rooks are badly placed.} (14. Bf4 $142) 14... Bf8 {[%emt 0:04:00]} 15. Bf4 {[%emt 0:03:57]} a6 {[%emt 0:02:20]} (15... Rxe1+ $142 16. Qxe1 Nbd7) 16. a4 {[%emt 0:04:54]} Rxe1+ {[%emt 0:01:12]} 17. Qxe1 {[%emt 0:00:01]} b5 {[%emt 0:03:27] [#]} 18. axb5 {[%emt 0:14:30]} ({Better is} 18. Ne5 $1 $16) 18... axb5 $11 {[%emt 0:00:54]} 19. Rxa8 {[%emt 0:03:21]} Bxa8 {[%emt 0:00:15]} 20. Nxb5 {[%emt 0:01:21] Black must now prevent Qa5.} Bxd5 {[%emt 0:04:03]} 21. Qd2 {[%emt 0:04:36]} Qd7 {[%emt 0:00:37]} (21... Nc6 {keeps more tension.} 22. Ne3 Bxg2 23. Qxd8 Nxd8 24. Kxg2 Nc6) 22. Bxd5 {[%emt 0:07:00]} (22. Nb6 {seems wilder.} Qxb5 23. Nxd5 Nbd7 24. Nxf6+ Nxf6 25. Be5) 22... Nxd5 {[%emt 0:03:19] The position is equal.} 23. Bxb8 {[%emt 0:06:29]} Qxb5 {[%emt 0:02:07]} 24. Qxd5 {[%emt 0:00:04]} Qxb8 $14 {[%emt 0:00:08][%mdl 4096] Endgame KQB-KQN} 25. Ne5 {[%emt 0:02:00]} Qe8 {[%emt 0:01:00]} 26. Nd7 {[%emt 0:02:50]} Qd8 {[%emt 0:01:33]} 27. Qc6 {[%emt 0:00:31]} Qe7 {[%emt 0:01:14]} 28. Qc8 {[%emt 0:01:52]} g6 {[%emt 0:00:49]} 29. Kg2 {[%emt 0:00:55] aiming for Kf3.} Qe4+ {[%emt 0:00:42]} 30. Kg1 {[%emt 0:00:37]} Qb1+ {[%emt 0:00:17]} 31. Kg2 {[%emt 0:00:02]} Qe4+ {[%emt 0:00:15]} 32. Kg1 {[%emt 0:00:23]} Qe7 {[%emt 0:00:07]} 33. Kg2 {[%emt 0:00:05]} Qd6 {[%emt 0:01:41]} 34. Kf3 {[%emt 0:01:15]} Qd5+ {[%emt 0:03:04]} 35. Ke2 {[%emt 0:01:09]} Qc4+ {[%emt 0:00:47]} 36. Kd2 {[%emt 0:01:38]} Qd4+ {[%emt 0:00:09]} 37. Kc1 {[%emt 0:01:01]} Qd6 {[%emt 0:08:26]} 38. Kc2 {[%emt 0:00:03]} Kg7 {[%emt 0:01:06]} 39. Qxf8+ {[%emt 0:05:06]} Qxf8 {[%emt 0:00:16]} 40. Nxf8 {[%emt 0:00:02]} Kxf8 $11 {[%emt 0:00:10] KP-KP} 41. Kc3 {[%emt 0:01:44] Strongly threatening Kc4.} Ke7 {[%emt 0:00:10]} 42. Kc4 {[%emt 0:00:01]} Kd6 {[%emt 0:00:06]} 43. f4 {[%emt 0:01:21]} f5 {[%emt 0:00:39]} 44. h4 {[%emt 0:03:46]} Kc6 $1 {[%emt 0:00:14]} 45. b3 {[%emt 0:00:30]} h5 {[%emt 0:08:06]} 46. Kd3 {[%emt 0:00:18]} Kd7 {[%emt 0:00:50]} 47. Kc4 {[%emt 0:00:28]} Kd6 {[%emt 0:00:27]} 48. Kc3 $1 {[%emt 0:00:01]} Kd5 {[%emt 0:00:54]} 49. Kd3 {[%emt 0:00:02]} Kd6 {[%emt 0:00:12]} 50. Kc3 {[%emt 0:00:07]} Kc7 {[%emt 0:00:14]} 51. Kc4 {[%emt 0:00:01]} Kc6 {[%emt 0:00:11]} 52. Kd3 {[%emt 0:00:18]} Kb5 {[%emt 0:00:42]} 53. Kc3 {[%emt 0:00:01]} Kc6 {[%emt 0:00:23]} 54. Kc4 {[%emt 0:00:06]} Kd6 {[%emt 0:00:06]} 55. Kc3 {[%emt 0:00:07] Weighted Error Value: White=0.07 (flawless) /Black=0.06 (flawless)} 1/2-1/2

[Event "Charlotte Summer IM C 2022"]
[Site "Charlotte"]
[Date "2022.07.26"]
[Round "4.4"]
[White "Venkat, Raghav"]
[Black "Xie, Bryan"]
[Result "1/2-1/2"]
[ECO "D02"]
[WhiteElo "2227"]
[BlackElo "2191"]
[Annotator "TA"]
[PlyCount "53"]
[EventDate "2022.07.24"]
[EventType "tourn"]
[EventCountry "USA"]
[SourceTitle "playchess.com"]
[Source "ChessBase"]
[SourceQuality "1"]
[TimeControl "5400+30"]

{[%evp 9,53,3,23,1,11,0,30,0,39,33,35,43,51,35,41,24,37,11,15,15,18,12,16,22,17,11,16,5,9,7,44,41,52,7,11,5,14,0,0,0,0,0,0,0,0,-25]} 1. d4 {[%emt 0:09:33]} d5 {[%emt 0:00:12]} 2. Nf3 {[%emt 0:00:28]} Nf6 {[%emt 0:00:30]} 3. Bf4 {[%emt 0:01:28]} Bf5 {[%emt 0:01:53]} 4. e3 {[%emt 0:00:07]} e6 {[%emt 0:00:10]} 5. Bd3 {[%emt 0:00:07]} Bg6 {[%emt 0:02:41]} 6. Qe2 {[%emt 0:01:00] D02: 1 d4 d5 2 Nf3 sidelines, including 2...Nf6 3 g3 and 2...Nf6 3 Bf4.} Bd6 {[%emt 0:08:31]} 7. Nbd2 {[%emt 0:03:02] [#]} Qe7 $146 {[%emt 0:02:34]} ({Predecessor:} 7... Bxf4 8. exf4 Bxd3 9. Qxd3 Qd7 10. O-O O-O 11. Rae1 Na6 12. c3 c5 13. Re3 cxd4 14. Qxd4 {1-0 (48) Yarmonov,I (2394)-Sekac,M (1928) Ruzomberok 2017}) 8. Ne5 {[%emt 0:04:34] White has an edge.} Nh5 {[%emt 0:05:22]} 9. Nxg6 {[%emt 0:07:56]} hxg6 {[%emt 0:00:15]} 10. Bxd6 {[%emt 0:00:36]} Qxd6 {[%emt 0:00:12]} 11. O-O-O {[%emt 0:00:10]} Nc6 {[%emt 0:06:17]} 12. Bb5 {[%emt 0:05:12]} O-O-O {[%emt 0:01:23]} 13. Bxc6 {[%emt 0:00:54]} Qxc6 {[%emt 0:00:25]} 14. Nf3 {[%emt 0:00:13]} Nf6 {[%emt 0:03:06]} 15. Ne5 {[%emt 0:00:53]} Qe8 {[%emt 0:00:03]} 16. h4 {[%emt 0:21:57][%cal Bh2h4,Bh4h5][%mdl 32]} Qe7 {[%emt 0:03:08]} 17. g4 {[%emt 0:02:02]} Nd7 {[%emt 0:01:20]} 18. Nxd7 {[%emt 0:00:35]} Rxd7 {[%emt 0:01:19]} 19. h5 {[%emt 0:00:08]} g5 {[%emt 0:07:09]} 20. f4 {[%emt 0:00:43]} Qf6 {[%emt 0:02:35]} 21. Rhf1 {[%emt 0:02:36]} g6 {[%emt 0:01:17] The position is equal.} 22. hxg6 {[%emt 0:02:57]} Qxg6 {[%emt 0:00:34]} 23. f5 {[%emt 0:00:42]} Qf6 {[%emt 0:03:12]} 24. fxe6 {[%emt 0:00:25]} Qxe6 {[%emt 0:00:12]} 25. Rf5 {[%emt 0:00:07]} f6 {[%emt 0:02:20]} 26. Rdf1 {[%emt 0:00:12]} Rh6 {[%emt 0:02:24]} 27. Qf3 {[%emt 0:02:45] Weighted Error Value: White=0.08 (flawless) /Black=0.09 (flawless)} 1/2-1/2

[Event "Charlotte Summer IM C 2022"]
[Site "Charlotte"]
[Date "2022.07.26"]
[Round "4.5"]
[White "Rodrigue-Lemieux, Shawn"]
[Black "Luo, Terry"]
[Result "1-0"]
[ECO "B53"]
[WhiteElo "2366"]
[BlackElo "2204"]
[Annotator "TA"]
[PlyCount "105"]
[EventDate "2022.07.24"]
[EventType "tourn"]
[EventCountry "USA"]
[SourceTitle "playchess.com"]
[Source "ChessBase"]
[SourceQuality "1"]
[TimeControl "5400+30"]

{[%evp 10,105,20,29,29,29,20,24,28,20,32,40,29,33,35,26,29,30,41,34,36,41,28,47,47,18,11,22,16,13,113,73,62,56,120,124,130,137,131,122,108,128,151,134,154,92,172,92,92,108,110,134,221,221,201,180,367,403,388,395,365,364,320,205,204,197,270,270,251,145,647,809,831,839,820,784,719,647,647,647,3216,2545,2128,2191,1825,1647,2196,2039,1579,1190,29951,29941,29977,29973,29982,29983,29981,29981]} 1. e4 {[%emt 0:00:02]} c5 {[%emt 0:00:07]} 2. Nf3 {[%emt 0:00:07]} d6 {[%emt 1:31:23]} 3. d4 {[%emt 0:00:10]} cxd4 {[%emt 0:00:00]} 4. Qxd4 {[%emt 1:32:11]} a6 {[%emt 0:00:00]} 5. c4 {[%emt 0:00:30]} Nc6 {[%emt 0:00:00]} 6. Qe3 {[%emt 0:00:30]} Nf6 {[%emt 0:00:00] B53: Sicilian: 2...d6: Lines with Qxd4.} 7. h3 {[%emt 0:00:00]} g6 {[%emt 0:00:00]} 8. Be2 {[%emt 0:00:00][%cal Bf1e2,Be2f3,Bf3a8,Ba8e4,Be4c2][%mdl 32]} Bg7 {[%emt 0:00:00] White has an edge.} 9. Nc3 {[%emt 0:00:00]} O-O {[%emt 0:03:30]} 10. O-O {[%emt 0:02:00]} Nd7 {[%emt 0:00:00]} 11. Rb1 {[%emt 0:00:30]} Nde5 {[%emt 0:00:00]} 12. Rd1 Nxf3+ {[%emt 0:01:30]} 13. Bxf3 {[%emt 0:00:00]} Qa5 {[%emt 0:00:30]} 14. Bd2 {[%emt 0:01:30][%cal Bc1d2,Bd2e3,Be3d4][%mdl 32]} Qc5 {[%emt 0:00:30] [#]} 15. Na4 $146 {[%emt 0:00:00]} ({Predecessor:} 15. Nd5 Be6 16. Qxc5 dxc5 17. Bg5 Rae8 18. Nc7 Rb8 19. b3 Bd4 20. Nd5 f6 21. Bf4 {½-½ (35) Paichadze,L (2568)-Gagunashvili,M (2553) Ureki 2015}) 15... Qxe3 {[%emt 0:00:00]} 16. Bxe3 {[%emt 0:01:00]} b5 {[%emt 0:00:00]} 17. e5 Nxe5 {[%emt 0:01:30]} 18. Bxa8 {[%emt 0:00:00]} bxa4 {[%emt 0:00:00]} 19. Be4 {next c5 is good for White.} f5 {[%emt 0:00:00]} (19... Nxc4 $11 {keeps the balance.} 20. Bg5 h6 21. Bxe7 Re8) 20. Bc2 Nxc4 {[%emt 0:01:30]} 21. Bd4 {[%emt 0:02:30]} e5 {[%emt 0:00:00]} (21... Bd7 $1 $14) 22. Bc3 $16 {[%emt 0:00:00]} Bd7 {[%emt 0:01:00]} 23. Bd3 $1 {[%emt 0:01:00]} Bb5 {[%emt 0:00:30]} 24. Bxc4+ {[%emt 0:00:00][%mdl 64] Discovered Attack} Bxc4 {[%emt 0:00:00]} 25. Rxd6 {[%emt 0:01:00]} Bxa2 {[%emt 0:01:00]} 26. Re1 {[%emt 0:00:30]} e4 {[%emt 0:00:30]} 27. Rxa6 {[%emt 0:00:30]} (27. Bxg7 $142 Kxg7 28. Rxa6) 27... Bb3 {[%emt 0:00:00]} (27... Bxc3 $16 28. bxc3 Bb3) 28. f3 (28. Bxg7 $18 Kxg7 29. f3) 28... Bxc3 {[%emt 0:01:00]} 29. bxc3 {[%emt 0:00:00]} exf3 {[%emt 0:00:00]} 30. gxf3 {[%emt 0:01:30][%mdl 4096] Endgame Re7 is the strong threat. KRR-KRB} Kg7 {[%emt 0:00:00]} (30... Kf7 $16) 31. Re7+ $1 $18 {[%emt 0:00:00]} Kh6 {[%emt 0:01:30]} 32. f4 {[%emt 0:01:00]} Rh8 $2 {[%emt 0:00:00]} (32... Rc8 {might work better.}) 33. Raa7 {[%emt 0:00:00]} g5 {[%emt 0:00:00]} 34. Kf2 {[%emt 0:00:00]} gxf4 {[%emt 0:00:00]} 35. Kf3 {[%emt 0:00:00]} Kg5 {[%emt 0:00:00]} 36. Rg7+ {[%emt 0:00:00]} (36. Rxh7 Rxh7 37. Rxh7 Bd5+ 38. Kf2 a3 $11) 36... Kf6 {[%emt 0:02:30]} 37. Rxh7 {[%emt 0:00:00]} (37. Kxf4 Re8) 37... Rc8 {[%emt 0:00:00]} (37... Re8 $142 38. Ra6+ (38. Kxf4 Re4+ 39. Kf3 Bd1+ 40. Kf2 Re2+ 41. Kf1 Rh2 $16) 38... Ke5 39. Ra5+ Kf6) 38. Rhc7 $1 {[%emt 0:00:00]} (38. Kxf4 Rc4+ 39. Ke3 Rxc3+ 40. Kd2 Rc2+ 41. Kd3 Rh2 $14) 38... Rh8 {[%emt 0:00:00]} 39. Ra6+ {[%emt 0:03:30]} ({Much less strong is} 39. Kxf4 $6 Rxh3 40. Rc6+ Be6 $18) (39. Rc6+ $1 $18 Be6 40. Kg2 (40. Kxf4 Rxh3 41. Raa6 Rh4+ 42. Kf3 Re4 $18)) 39... Ke5 $2 {[%emt 0:01:30][%mdl 8192] [#] Black cannot hold the game after this.} (39... Be6 $16 40. Kg2 (40. Kxf4 Rxh3 41. Rcc6 Rh4+ 42. Kf3 Re4 $18) 40... f3+ 41. Kf2 (41. Kxf3 Rxh3+ 42. Kf2 Rh2+ 43. Kg3 Rd2 $18) 41... Rxh3) 40. Rc5+ $1 {[%emt 0:00:00]} Bd5+ {[%emt 0:00:00]} 41. Kf2 {[%emt 0:00:00]} Rxh3 {[%emt 0:00:00] [#]} 42. c4 $1 {[%emt 0:00:00][%mdl 64] Pin} Rh2+ {[%emt 0:00:00]} 43. Ke1 {[%emt 0:00:00]} Rh1+ {[%emt 0:00:00]} 44. Kd2 {[%emt 0:00:00]} Rh2+ {[%emt 0:00:00]} 45. Kc3 {[%emt 0:00:00]} Rh3+ {[%emt 0:00:00]} 46. Kb4 {[%emt 0:00:00]} f3 {[%emt 0:00:00]} 47. Rxd5+ {[%emt 0:00:00]} Kf4 {[%emt 0:04:00]} 48. Raa5 {[%emt 0:00:00]} Rh5 {[%emt 0:00:00]} 49. Rxa4 {[%emt 0:00:11]} f2 {[%emt 0:00:00]} 50. Ra1 {[%emt 0:00:19] White mates.} Kg3 {[%emt 0:00:00]} 51. c5 {[%emt 0:00:30][%cal Bc4c5,Bc5c6][%mdl 32]} Kg2 {[%emt 0:00:00]} 52. c6 {[%emt 0:01:09]} Rh4+ {[%emt 0:00:00]} 53. Kb5 {[%emt 0:00:23] Weighted Error Value: White=0.13 (very precise) /Black=0.44} 1-0